fUSD/lending_fUSD_20260228
["ID","MTS","AMOUNT","RATE_DAILY","PERIOD"]
[406866318,1772251842969,-500.0,0.00013699,2]
[406866319,1772251842979,-500.0,0.00013699,2]
[406866320,1772251842988,-500.0,0.00013699,2]
[406866321,1772251842998,-500.0,0.00013699,2]
[406866322,1772251843007,-500.0,0.00013699,2]
[406866323,1772251843016,-501.57340438,0.00013699,2]
[406866324,1772251843025,-500.59954832,0.00013699,2]
[406866325,1772251843034,-500.0,0.00013699,2]
[406866326,1772251843043,-500.5697584,0.00013699,2]
[406866327,1772251843052,-500.0,0.00013699,2]
[406866329,1772251843061,-500.0,0.00013699,2]
[406866331,1772251843071,-500.0,0.00013699,2]
[406866332,1772251843080,-915.2,0.00013699,2]
[406866333,1772251843089,-9999.99,0.00013699,2]
[406866334,1772251843098,-29999.99,0.00013699,2]
[406866335,1772251843107,-296.60721331,0.00013699,2]
[406866336,1772251843117,-161.82,0.000137,2]
[406866337,1772251843126,-542.34,0.00013727,2]
[406866338,1772251843135,-1800.0,0.000139,5]
[406866339,1772251843144,-4792.5,0.00013942,2]
[406866340,1772251843154,-1632.82604834,0.00014057,2]
[406866341,1772251843163,-1659.553664,0.00014089,7]
[406866342,1772251843172,-161.100606,0.00014089,7]
[406866343,1772251843182,-542.34,0.00014095,2]
[406866344,1772251843191,-514.0,0.0001411,2]
[406866345,1772251843201,-18451.85979483,0.00014134,2]
[406866346,1772251843210,-1000.0,0.00014247,2]
[406866347,1772251843219,-1000.0,0.00014247,2]
[406866348,1772251843228,-1000.0,0.00014247,2]
[406866349,1772251843237,-1000.0,0.00014247,2]
[406866350,1772251843246,-1008.99447725,0.00014247,2]
[406866351,1772251843255,-1000.0,0.00014247,2]
[406866352,1772251843264,-687.41667409,0.00014247,2]
[406866353,1772251843274,-1000.0,0.00014247,2]
[406866354,1772251843283,-1000.0,0.00014247,2]
[406866355,1772251843292,-1000.0,0.00014247,2]
[406866356,1772251843302,-1000.0,0.00014247,2]
[406866357,1772251843312,-1000.0,0.00014247,2]
[406866358,1772251843321,-1000.0,0.00014247,2]
[406866359,1772251843331,-510.84264222,0.00014247,2]
[406866360,1772251843341,-513.58694386,0.00014247,2]
[406866361,1772251843350,-1000.0,0.00014247,2]
[406866362,1772251843360,-1000.0,0.00014247,2]
[406866363,1772251843372,-1000.0,0.00014247,2]
[406866364,1772251843382,-1000.0,0.00014247,2]
[406866365,1772251843391,-1000.0,0.00014247,2]
[406866366,1772251843400,-1000.0,0.00014247,2]
[406866367,1772251843411,-1000.0,0.00014247,2]
[406866368,1772251843420,-1000.0,0.00014247,2]
[406866369,1772251843430,-1000.0,0.00014247,2]
[406866370,1772251843439,-1000.0,0.00014247,2]
[406866371,1772251843450,-1000.0,0.00014247,2]
[406866372,1772251843459,-1000.0,0.00014247,2]
[406866373,1772251843469,-1007.66164344,0.00014247,2]
[406866374,1772251843478,-483.72968394,0.00014253,2]
[406866375,1772251843488,-542.34,0.00014464,2]
[406866376,1772251843498,-18451.85979483,0.00014672,2]
[406866377,1772251843507,-191.63537989,0.00014735,2]
[406866378,1772251843516,-344.94368379,0.00014735,2]
[406866379,1772251843525,-15896.0,0.00014755,2]
[406866380,1772251843534,-1148.80880452,0.00014795,2]
[406866381,1772251843544,-1512.5028717,0.00014795,2]
[406866382,1772251843553,-1500.0,0.00014795,2]
[406866383,1772251843562,-1500.0,0.00014795,2]
[406866384,1772251843571,-430.58615362,0.00014795,2]
[406866385,1772251843581,-1500.0,0.00014795,2]
[406866386,1772251843590,-1500.0,0.00014795,2]
[406866387,1772251843599,-1500.0,0.00014795,2]
[406866388,1772251843609,-1500.0,0.00014795,2]
[406866389,1772251843618,-1145.47642,0.00014795,2]
[406866390,1772251843627,-1500.0,0.00014795,2]
[406866391,1772251843636,-1500.0,0.00014795,2]
[406866392,1772251843645,-1500.0,0.00014795,2]
[406866394,1772251843654,-742.07812553,0.00014795,2]
[406866396,1772251843663,-1500.0,0.00014795,2]
[406866398,1772251843672,-1500.0,0.00014795,2]
[406866399,1772251843682,-1500.0,0.00014795,2]
[406866400,1772251843691,-1500.0,0.00014795,2]
[406866402,1772251843700,-1500.0,0.00014795,2]
[406866404,1772251843710,-1500.0,0.00014795,2]
[406866406,1772251843718,-1500.0,0.00014795,2]
[406866407,1772251843728,-789.8901313,0.00014795,2]
[406866408,1772251843737,-1500.0,0.00014795,2]
[406866409,1772251843746,-1632.82604834,0.00014826,2]
[406866410,1772251843755,-542.34,0.00014833,2]
[406866411,1772251843765,-250.0,0.00015,2]
[406866412,1772251843774,-542.34,0.00015202,2]
[406866413,1772251843784,-18451.85979483,0.0001521,2]
[406866414,1772251843792,-2000.0,0.00015342,2]
[406866415,1772251843802,-2000.0,0.00015342,2]
[406866416,1772251843812,-247.77184833,0.00015342,2]
[406866417,1772251843820,-2000.0,0.00015342,2]
[406866418,1772251843830,-2000.0,0.00015342,2]
[406866419,1772251843839,-1517.58422612,0.00015342,2]
[406866421,1772251843848,-205.11520705,0.00015342,2]
[406866423,1772251843857,-2000.0,0.00015342,2]
[406866425,1772251843866,-2000.0,0.00015342,2]
[406866427,1772251843875,-1507.4734396,0.00015342,2]
[406866429,1772251843885,-1616.65379419,0.00015342,2]
[406866430,1772251843894,-539.84108658,0.00015342,2]
[406866432,1772251843904,-2000.0,0.00015342,2]
[406866434,1772251843913,-2000.0,0.00015342,2]
[406866435,1772251843922,-1000.0,0.00015342,2]
[406866436,1772251843931,-216.9791158,0.00015342,2]
[406866437,1772251843940,-1202.07266483,0.00015342,2]
[406866438,1772251843949,-500.0,0.00015348,2]
[406866439,1772251843959,-500.0,0.00015348,2]
[406866440,1772251843968,-864.47,0.00015348,2]
[406866441,1772251843977,-174.04581251,0.00015383,2]
[406866442,1772251843987,-160.0,0.00015383,2]
[406866443,1772251843996,-9990.0,0.00015471,2]
[406866444,1772251844006,-196.36177182,0.0001551,2]
[406866445,1772251844016,-353.45118927,0.0001551,2]
[406866446,1772251844025,-542.34,0.0001557,2]
[406866447,1772251844035,-1632.82604834,0.00015594,2]
[406866448,1772251844044,-444.25243944,0.00015708,2]
[406866449,1772251844054,-1562.12302209,0.00015708,2]
[406866450,1772251844063,-3174.17877476,0.00015708,2]
[406866451,1772251844072,-18451.85979483,0.00015748,2]
[406866452,1772251844081,-2030.40923373,0.0001589,2]
[406866453,1772251844090,-2500.0,0.0001589,2]
[406866454,1772251844099,-710.27511259,0.0001589,2]
[406866455,1772251844108,-2500.0,0.0001589,2]
[406866456,1772251844117,-1007.20616861,0.0001589,2]
[406866457,1772251844126,-1024.55143979,0.0001589,2]
[406866458,1772251844136,-2276.78956072,0.0001589,2]
[406866459,1772251844145,-2500.0,0.0001589,2]
[406866460,1772251844154,-3600.0,0.000159,5]
[406866461,1772251844163,-5018.36116075,0.0001596,2]
[406866462,1772251844173,-9999.99,0.00016116,2]
[406866463,1772251844182,-194.22,0.00016177,2]
[406866464,1772251844190,-65170.60872795,0.000162,5]
[406866465,1772251844199,-18451.85979483,0.00016286,2]
[406866466,1772251844208,-1632.82604834,0.00016363,2]
[406866467,1772251844217,-978.70537872,0.00016393,2]
[406866468,1772251844226,-647.0,0.00016438,2]
[406866469,1772251844234,-500.0,0.00016438,2]
[406866470,1772251844244,-266.81662109,0.00016438,2]
[406866471,1772251844253,-1487.0338117,0.00016438,2]
[406866472,1772251844262,-2295.1037872,0.00016438,2]
[406866473,1772251844272,-3000.0,0.00016438,2]
[406866474,1772251844281,-647.0,0.00016493,2]
[406866475,1772251844290,-647.0,0.00016548,2]
[406866476,1772251844299,-647.0,0.00016602,2]
[406866477,1772251844308,-1000.0,0.00016618,7]
[406866478,1772251844318,-647.0,0.00016657,2]
[406866479,1772251844327,-647.0,0.00016712,2]
[406866480,1772251844337,-647.0,0.00016767,2]
[406866481,1772251844346,-50000.0,0.0001677,2]
[406866482,1772251844355,-2000.0,0.0001681,2]
[406866483,1772251844365,-647.0,0.00016822,2]
[406866484,1772251844377,-18451.85979483,0.00016824,2]
[406866485,1772251844387,-308.99,0.00016827,2]
[406866486,1772251844396,-647.0,0.00016876,2]
[406866487,1772251844407,-2000.0,0.0001691,2]
[406866488,1772251844416,-647.0,0.00016931,2]
[406866489,1772251844425,-150.0,0.00016938,7]
[406866490,1772251844435,-647.0,0.00016986,2]
[406866491,1772251844445,-3500.0,0.00016986,2]
[406866492,1772251844454,-1015.21,0.00017,3]
[406866493,1772251844463,-300.0,0.00017,2]
[406866494,1772251844472,-147513.0296702,0.00017,2]
[406866495,1772251844482,-500.0,0.00017009,2]
[406866496,1772251844491,-500.0,0.00017009,2]
[406866497,1772251844500,-500.0,0.00017009,2]
[406866498,1772251844509,-500.0,0.00017009,2]
[406866499,1772251844519,-830.3,0.00017009,2]
[406866500,1772251844528,-500.0,0.00017009,2]
[406866501,1772251844537,-497.70153186,0.00017009,2]
[406866502,1772251844547,-2000.0,0.0001701,2]
[406866503,1772251844556,-307.20133331,0.00017028,2]
[406866504,1772251844565,-647.0,0.00017041,2]
[406866505,1772251844575,-5125.62970425,0.00017044,2]
[406866506,1772251844584,-647.0,0.00017096,2]
[406866507,1772251844593,-5507.95366483,0.000171,2]
[406866508,1772251844603,-1526.458,0.0001711,2]
[406866509,1772251844612,-177.333,0.00017121,2]
[406866510,1772251844621,-1632.82604834,0.00017131,2]
[406866511,1772251844631,-204.0,0.00017135,2]
[406866512,1772251844640,-978.70537872,0.00017147,2]
[406866513,1772251844650,-350.0,0.00017147,2]
[406866514,1772251844660,-647.0,0.0001715,2]
[406866515,1772251844669,-647.0,0.00017205,2]
[406866516,1772251844678,-647.0,0.0001726,2]
[406866517,1772251844688,-8547.17662406,0.0001727,2]
[406866518,1772251844697,-5500.0,0.000173,6]
[406866519,1772251844706,-647.0,0.00017315,2]
[406866520,1772251844717,-738.12518289,0.00017352,2]
[406866521,1772251844727,-18451.85979483,0.00017362,2]
[406866522,1772251844736,-647.0,0.0001737,2]
[406866523,1772251844746,-8547.17662401,0.00017396,2]
[406866524,1772251844755,-7300.0,0.000174,6]
[406866525,1772251844765,-647.0,0.00017424,2]
[406866526,1772251844774,-194.22,0.00017454,2]
[406866527,1772251844783,-647.0,0.00017479,2]
[406866528,1772251844792,-694.42441671,0.000175,3]
[406866529,1772251844802,-5616.53495309,0.000175,3]
[406866530,1772251844811,-9200.0,0.000175,6]
[406866531,1772251844820,-8547.17662401,0.00017522,2]
[406866532,1772251844829,-647.0,0.00017534,2]
[406866533,1772251844839,-3979.36214283,0.00017534,2]
[406866534,1772251844848,-647.0,0.00017589,2]
[406866535,1772251844858,-1800.0,0.000176,6]
[406866536,1772251844867,-350.0,0.00017602,2]
[406866537,1772251844877,-350.0,0.00017628,2]
[406866538,1772251844886,-1139.01752826,0.0001764,2]
[406866539,1772251844895,-1002.38997763,0.0001764,2]
[406866540,1772251844904,-1044.37296191,0.0001764,2]
[406866541,1772251844913,-1146.64721341,0.0001764,2]
[406866542,1772251844923,-1042.39015538,0.0001764,2]
[406866543,1772251844932,-1042.15635069,0.0001764,2]
[406866544,1772251844942,-1009.25153278,0.0001764,2]
[406866545,1772251844951,-1023.62814969,0.0001764,2]
[406866546,1772251844960,-1017.10473245,0.0001764,2]
[406866547,1772251844970,-1074.87064891,0.0001764,2]
[406866548,1772251844979,-1093.02566029,0.0001764,2]
[406866549,1772251844989,-1052.56148628,0.0001764,2]
[406866550,1772251845000,-1026.44808534,0.0001764,2]
[406866551,1772251845009,-1050.18529648,0.0001764,2]
[406866552,1772251845021,-1129.59224541,0.0001764,2]
[406866553,1772251845030,-1086.63251281,0.0001764,2]
[406866554,1772251845040,-1047.77007312,0.0001764,2]
[406866555,1772251845050,-1018.80075955,0.0001764,2]
[406866556,1772251845060,-1101.15325714,0.0001764,2]
[406866557,1772251845069,-1120.89839059,0.0001764,2]
[406866558,1772251845078,-1008.34673882,0.0001764,2]
[406866559,1772251845088,-1111.77894432,0.0001764,2]
[406866560,1772251845097,-1102.95274768,0.0001764,2]
[406866561,1772251845107,-1044.27705388,0.0001764,2]
[406866562,1772251845116,-647.0,0.00017643,2]
[406866563,1772251845126,-8547.17662401,0.00017648,2]
[406866564,1772251845136,-204.0,0.00017663,2]
[406866565,1772251845146,-350.0,0.00017668,2]
[406866566,1772251845155,-204.0,0.00017678,2]
[406866567,1772251845164,-659.0,0.00017698,2]
[406866568,1772251845174,-1800.0,0.000177,6]
[406866569,1772251845184,-200.15445162,0.00017746,2]
[406866570,1772251845193,-8547.17662401,0.00017774,2]
[406866571,1772251845203,-1800.0,0.000178,6]
[406866572,1772251845212,-5000.0,0.00017808,2]
[406866573,1772251845222,-500.0,0.00017808,2]
[406866574,1772251845231,-500.0,0.00017808,2]
[406866575,1772251845241,-500.0,0.00017808,2]
[406866576,1772251845251,-500.0,0.00017808,2]
[406866577,1772251845260,-500.0,0.00017808,2]
[406866578,1772251845269,-500.0,0.00017808,2]
[406866579,1772251845279,-500.0,0.00017808,2]
[406866580,1772251845289,-500.0,0.00017808,2]
[406866581,1772251845298,-500.0,0.00017808,2]
[406866582,1772251845307,-500.0,0.00017808,2]
[406866583,1772251845317,-500.0,0.00017808,2]
[406866584,1772251845326,-500.0,0.00017808,2]
[406866585,1772251845336,-459.65440741,0.00017808,2]
[406866586,1772251845345,-500.0,0.00017808,2]
[406866587,1772251845355,-500.0,0.00017808,2]
[406866588,1772251845365,-500.0,0.00017808,2]
[406866589,1772251845377,-800.0,0.00017808,2]
[406866590,1772251845387,-350.0,0.00017827,2]
[406866591,1772251845396,-500.0,0.00017829,2]
[406866592,1772251845406,-529.72247796,0.00017829,2]
[406866593,1772251845415,-500.0,0.00017829,2]
[406866594,1772251845425,-393.27599865,0.00017829,2]
[406866595,1772251845434,-864.47,0.00017829,2]
[406866596,1772251845445,-500.0,0.00017829,2]
[406866597,1772251845455,-140156.87642438,0.0001783,2]
[406866598,1772251845464,-350.0,0.00017855,2]
[406866599,1772251845473,-500.0,0.00017863,2]
[406866600,1772251845483,-1075.2658489,0.0001789,2]
[406866601,1772251845493,-25000.0,0.00017891,3]
[406866602,1772251845502,-10000.0,0.000179,2]
[406866603,1772251845511,-1000.0,0.000179,2]
[406866604,1772251845522,-733.851,0.000179,2]
[406866605,1772251845532,-25000.0,0.000179,3]
[406866606,1772251845541,-5125.62970425,0.000179,2]
[406866607,1772251845550,-1800.0,0.000179,6]
[406866608,1772251845560,-18451.85979483,0.000179,2]
[406866609,1772251845569,-978.70537872,0.000179,2]
[406866610,1772251845579,-8547.17662401,0.000179,2]
[406866611,1772251845588,-1009.0858384,0.000179,3]
[406866612,1772251845597,-1632.82604834,0.000179,2]
[406866613,1772251845607,-444.25243944,0.000179,2]
[406866614,1772251845616,-1562.12302209,0.000179,2]
[406866615,1772251845746,-3174.17877476,0.000179,2]
[406866616,1772251845757,-500.0,0.00017918,2]
[406866617,1772251845767,-504.26225979,0.00017972,2]
[406866618,1772251845777,-150.0,0.00017973,2]
[406866619,1772251845787,-150.0,0.00017973,2]
[406866620,1772251845797,-500.0,0.00017979,2]
[406866621,1772251845806,-500.0,0.00017979,2]
[406866622,1772251845816,-500.0,0.00017979,2]
[406866623,1772251845825,-500.0,0.00017979,2]
[406866624,1772251845835,-830.3,0.00017979,2]
[406866625,1772251845845,-500.0,0.00017979,2]
[406866626,1772251845855,-506.23015856,0.00017982,2]
[406866627,1772251845865,-738.12518289,0.0001799,2]
[406866628,1772251845874,-595.16967246,0.00017991,2]
[406866629,1772251845884,-500.0,0.00017991,2]
[406866630,1772251845893,-500.0,0.00017991,2]
[406866631,1772251845903,-864.47,0.00017991,2]
[406866632,1772251845913,-500.0,0.00017996,2]
[406866633,1772251845923,-323.52915924,0.00017996,2]
[406866634,1772251845933,-4883.1676468,0.00017996,2]
[406866635,1772251845943,-500.0,0.00017996,2]
[406866636,1772251845952,-500.0,0.00017996,2]
[406866637,1772251845962,-830.3,0.00017996,2]
[406866638,1772251845972,-500.0,0.00017996,2]
[406866639,1772251845981,-500.0,0.00017996,2]
[406866640,1772251845991,-204.0,0.00017997,2]
[406866641,1772251846000,-332024.2148419,0.00017997,2]
[406866642,1772251846009,-6510.8901958,0.00017997,2]
[406866643,1772251846019,-53455.4425788,0.00017997,2]
[406866644,1772251846028,-14649.5029406,0.00017997,2]
[406866645,1772251846038,-309.62563364,0.00017999,2]
[406866646,1772251846047,-309.77738492,0.00017999,2]
[406866647,1772251846057,-300.0,0.00017999,2]
[406866648,1772251846066,-500.0,0.00017999,2]
[406866649,1772251846075,-500.0,0.00017999,2]
[406866650,1772251846085,-500.0,0.00017999,2]
[406866651,1772251846096,-648.3262986,0.00017999,2]
[406866652,1772251846105,-500.0,0.00017999,2]
[406866653,1772251846115,-195.98442162,0.00017999,2]
[406866654,1772251846125,-864.47,0.00017999,2]
[406866655,1772251846135,-864.47,0.00017999,2]
[406866656,1772251846144,-864.47,0.00017999,2]
[406866657,1772251846154,-864.47,0.00017999,2]
[406866658,1772251846165,-864.47,0.00017999,2]
[406866659,1772251846175,-864.47,0.00017999,2]
[406866660,1772251846185,-864.47,0.00017999,2]
[406866661,1772251846195,-864.47,0.00017999,2]
[406866662,1772251846204,-864.47,0.00017999,2]
[406866663,1772251846214,-864.47,0.00017999,2]
[406866664,1772251846224,-864.47,0.00017999,2]
[406866665,1772251846236,-864.47,0.00017999,2]
[406866666,1772251846246,-864.47,0.00017999,2]
[406866667,1772251846255,-864.53521615,0.00017999,2]
[406866668,1772251846265,-300.0,0.00017999,2]
[406866669,1772251846274,-292.6907697,0.00017999,2]
[406866670,1772251846283,-500.0,0.00017999,2]
[406866671,1772251846293,-500.0,0.00017999,2]
[406866672,1772251846303,-500.0,0.00017999,2]
[406866673,1772251846312,-500.0,0.00017999,2]
[406866674,1772251846322,-500.0,0.00017999,2]
[406866675,1772251846331,-500.0,0.00017999,2]
[406866676,1772251846340,-500.0,0.00017999,2]
[406866677,1772251846350,-500.0,0.00017999,2]
[406866678,1772251846359,-281.09297896,0.00017999,2]
[406866679,1772251846372,-500.0,0.00017999,2]
[406866680,1772251846381,-500.0,0.00017999,2]
[406866681,1772251846391,-500.0,0.00017999,2]
[406866682,1772251846400,-500.0,0.00017999,2]
[406866683,1772251846411,-586.80631414,0.00017999,2]
[406866684,1772251846420,-830.3,0.00017999,2]
[406866685,1772251846430,-830.3,0.00017999,2]
[406866686,1772251846439,-830.3,0.00017999,2]
[406866687,1772251846450,-830.3,0.00017999,2]
[406866688,1772251846459,-830.3,0.00017999,2]
[406866689,1772251846468,-830.3,0.00017999,2]
[406866690,1772251846478,-830.3,0.00017999,2]
[406866691,1772251846489,-830.3,0.00017999,2]
[406866692,1772251846498,-830.3,0.00017999,2]
[406866693,1772251846508,-830.35348064,0.00017999,2]
[406866695,1772251846517,-500.0,0.00017999,2]
[406866697,1772251846527,-500.0,0.00017999,2]
[406866699,1772251846536,-500.0,0.00017999,2]
[406866701,1772251846545,-500.0,0.00017999,2]
[406866703,1772251846555,-500.0,0.00017999,2]
[406866705,1772251846564,-500.0,0.00017999,2]
[406866707,1772251846573,-500.0,0.00017999,2]
[406866709,1772251846582,-536.88822607,0.00017999,2]
[406866711,1772251846591,-500.0,0.00017999,2]
[406866713,1772251846600,-500.0,0.00017999,2]
[406866715,1772251846609,-500.0,0.00017999,2]
[406866717,1772251846618,-500.0,0.00017999,2]
[406866719,1772251846628,-500.0,0.00017999,2]
[406866721,1772251846637,-180.4202576,0.00017999,2]
[406866723,1772251846646,-300.0,0.00017999,2]
[406866725,1772251846655,-195.66587194,0.00017999,2]
[406866727,1772251846665,-2968262.03826291,0.00018,2]
[406866737,1772251846833,-116112.7699223,0.00018,2]
[406866738,1772251846845,-1308.85902936,0.00018,2]
[406866739,1772251846856,-30237.14751851,0.00018,2]
[406866740,1772251846906,-425.89028401,0.00018,2]
[406866741,1772252223046,1265.65,8.564e-05,2]
[406866742,1772252283442,1700.0,8.9e-05,3]
[406866743,1772252285532,3400.0,9e-05,3]
[406866744,1772252450794,2132.29931362,8.39e-05,2]
[406866745,1772252450819,1813.68235876,8.39e-05,2]
[406866747,1772252853879,3400.0,8.7e-05,3]
[406866748,1772252855964,6800.0,8.8e-05,3]
[406866749,1772252858067,10200.0,8.9e-05,3]
[406866750,1772252860134,13600.0,9e-05,3]
[406866751,1772252862212,17100.0,0.0001,3]
[406866769,1772253032279,-881.86849656,7.777e-05,2]
[406866772,1772253032291,-753.09618127,7.777e-05,2]
[406866774,1772253032304,-217.45532217,7.777e-05,2]
[406866776,1772253032314,-300.0,7.982e-05,2]
[406866778,1772253032324,-150.0,7.982e-05,2]
[406866779,1772253032333,-250.0,7.982e-05,2]
[406866781,1772253032343,-469.75125605,7.983e-05,2]
[406866782,1772253032354,-759.80301203,7.983e-05,2]
[406866783,1772253032365,-789.06159669,7.983e-05,2]
[406866784,1772253032390,-32634.68733321,7.983e-05,2]
[406866785,1772253032401,-4447.10351561,7.983e-05,2]
[406866798,1772253038310,-21070.19328641,7.983e-05,2]
[406866799,1772253038320,-11362.17,8.036e-05,2]
[406866800,1772253038330,-235.606588,8.219e-05,2]
[406866801,1772253038339,-1683.49,8.219e-05,2]
[406866802,1772253038348,-8924.86832762,8.39e-05,2]
[406866803,1772253038358,-271.50511692,8.514e-05,2]
[406866804,1772253038367,-155.56087142,8.514e-05,2]
[406866805,1772253038376,-150.0,8.514e-05,2]
[406866806,1772253038385,-150.0,8.514e-05,2]
[406866807,1772253038394,-150.0,8.514e-05,2]
[406866808,1772253038403,-153.38590551,8.514e-05,2]
[406866809,1772253038412,-150.0,8.514e-05,2]
[406866810,1772253038421,-162.55414712,8.514e-05,2]
[406866811,1772253038430,-196.9807025,8.514e-05,2]
[406866812,1772253038439,-500.0,8.514e-05,2]
[406866813,1772253038448,-152.77559653,8.514e-05,2]
[406866814,1772253038457,-168.42639227,8.514e-05,2]
[406866815,1772253038467,-150.0,8.514e-05,2]
[406866816,1772253038476,-154.95516926,8.514e-05,2]
[406866817,1772253038485,-150.0,8.514e-05,2]
[406866818,1772253038494,-154.23705455,8.514e-05,2]
[406866819,1772253038503,-150.0,8.514e-05,2]
[406866820,1772253038513,-150.0,8.514e-05,2]
[406866821,1772253038522,-150.0,8.514e-05,2]
[406866822,1772253038531,-22326.52,8.521e-05,2]
[406866823,1772253038541,-500.0,8.546e-05,2]
[406866824,1772253038551,-2000000.0,8.547e-05,2]
[406866825,1772253038561,-163.84344355,8.569e-05,2]
[406866826,1772253038570,-155.96966553,8.569e-05,2]
[406866827,1772253038579,-159.12358456,8.569e-05,2]
[406866828,1772253038591,-500.0,8.569e-05,2]
[406866829,1772253038600,-152.88887975,8.569e-05,2]
[406866830,1772253038610,-150.0,8.569e-05,2]
[406866831,1772253038620,-150.0,8.569e-05,2]
[406866832,1772253038633,-150.0,8.569e-05,2]
[406866833,1772253038643,-150.0,8.614e-05,2]
[406866834,1772253038652,-150.0,8.614e-05,2]
[406866835,1772253038661,-150.0,8.614e-05,2]
[406866836,1772253038671,-381.2607045,8.624e-05,2]
[406866837,1772253038680,-150.0,8.624e-05,2]
[406866838,1772253038689,-220.61532295,8.624e-05,2]
[406866839,1772253038698,-150.0,8.624e-05,2]
[406866840,1772253038707,-232.524521,8.647e-05,2]
[406866842,1772253038717,-150.0,8.669e-05,2]
[406866844,1772253038726,-200.0,8.669e-05,2]
[406866845,1772253038735,-156.41275751,8.669e-05,2]
[406866846,1772253038743,-500.0,8.673e-05,2]
[406866847,1772253038753,-226.38041342,8.673e-05,2]
[406866848,1772253038762,-502.24115013,8.673e-05,2]
[406866849,1772253038772,-500.0,8.673e-05,2]
[406866850,1772253038781,-163.0840927,8.673e-05,2]
[406866851,1772253038790,-500.0,8.673e-05,2]
[406866852,1772253038799,-500.0,8.673e-05,2]
[406866853,1772253038808,-500.0,8.673e-05,2]
[406866854,1772253038817,-500.0,8.673e-05,2]
[406866855,1772253038827,-500.58678737,8.673e-05,2]
[406866856,1772253038840,-500.0,8.673e-05,2]
[406866857,1772253038850,-500.0,8.673e-05,2]
[406866858,1772253038859,-500.0,8.673e-05,2]
[406866859,1772253038869,-500.0,8.673e-05,2]
[406866860,1772253038879,-341.60788349,8.673e-05,2]
[406866861,1772253038888,-500.43690086,8.673e-05,2]
[406866862,1772253038897,-500.0,8.673e-05,2]
[406866863,1772253038907,-493.67205134,8.673e-05,2]
[406866864,1772253038916,-501.59993335,8.673e-05,2]
[406866865,1772253038925,-501.72819961,8.673e-05,2]
[406866866,1772253038934,-500.0,8.673e-05,2]
[406866867,1772253038943,-500.0,8.673e-05,2]
[406866868,1772253038952,-500.0,8.673e-05,2]
[406866869,1772253038961,-500.0,8.673e-05,2]
[406866870,1772253038971,-164.6207651,8.673e-05,2]
[406866871,1772253038980,-501.05665714,8.673e-05,2]
[406866872,1772253038989,-500.0,8.673e-05,2]
[406866873,1772253038998,-500.0,8.673e-05,2]
[406866874,1772253039010,-500.67601232,8.673e-05,2]
[406866875,1772253039022,-503.06902733,8.673e-05,2]
[406866876,1772253039034,-500.0,8.673e-05,2]
[406866877,1772253039047,-500.0,8.673e-05,2]
[406866878,1772253039059,-173.77561775,8.678e-05,2]
[406866879,1772253039070,-214.04739671,8.678e-05,2]
[406866880,1772253039080,-4133.7097,8.688e-05,2]
[406866881,1772253039091,-89546.4512,8.688e-05,2]
[406866882,1772253039103,-375146.5397,8.688e-05,2]
[406866883,1772253039115,-8516.81299173,8.689e-05,2]
[406866884,1772253039126,-2500.0,8.689e-05,2]
[406866885,1772253039138,-150.0,8.724e-05,2]
[406866886,1772253039149,-420.0,8.78e-05,2]
[406866887,1772253039160,-255.0,8.78e-05,2]
[406866888,1772253039173,-250.0,8.78e-05,2]
[406866889,1772253039185,-250.0,8.78e-05,2]
[406866890,1772253039198,-1526.458,8.788e-05,2]
[406866891,1772253039211,-177.333,8.788e-05,2]
[406866892,1772253039222,-228.63,8.788e-05,2]
[406866893,1772253039233,-500.0,8.82e-05,2]
[406866894,1772253039243,-150.0,8.862e-05,2]
[406866895,1772253039254,-150.0,8.862e-05,2]
[406866896,1772253039266,-288.1281186,8.917e-05,2]